[Event "Early-Titled-Tuesday-Blitz-January-16-2024"]
[Site "Chess.com"]
[Date "2024.01.16"]
[Round "5"]
[White "LaPiToB"]
[Black "Actuary44"]
[Result "1-0"]
[WhiteElo "2316"]
[BlackElo "2484"]
[TimeControl "180+1"]
[EndTime "8:58:37 PST"]
[Termination "LaPiToB won on time"]

1. d4 {[%clk 0:03:00.9]} 1... Nf6 {[%clk 0:02:59.8]} 2. c4 {[%clk 0:02:59.7]}
2... g6 {[%clk 0:02:59.9]} 3. Nc3 {[%clk 0:02:58.8]} 3... Bg7 {[%clk 0:03:00.1]}
4. e4 {[%clk 0:02:58.4]} 4... d6 {[%clk 0:03:00.7]} 5. Be2 {[%clk 0:02:57.2]}
5... O-O {[%clk 0:03:01.3]} 6. Bg5 {[%clk 0:02:55.8]} 6... c5 {[%clk 0:03:00.8]}
7. d5 {[%clk 0:02:54.9]} 7... Na6 {[%clk 0:03:01.2]} 8. Qd2 {[%clk 0:02:52.9]}
8... Nc7 {[%clk 0:03:01.8]} 9. a4 {[%clk 0:02:44.8]} 9... a6 {[%clk 0:03:02.1]}
10. h3 {[%clk 0:02:43.5]} 10... Rb8 {[%clk 0:03:02.3]} 11. Nf3 {[%clk
0:02:39.1]} 11... Bd7 {[%clk 0:02:59.8]} 12. O-O {[%clk 0:02:37.1]} 12... b5
{[%clk 0:02:59.8]} 13. cxb5 {[%clk 0:02:35]} 13... axb5 {[%clk 0:03:00.7]} 14.
axb5 {[%clk 0:02:34.7]} 14... Bxb5 {[%clk 0:03:00]} 15. Bxb5 {[%clk 0:02:29.4]}
15... Nxb5 {[%clk 0:03:00.2]} 16. Rfd1 {[%clk 0:02:19.7]} 16... Nxc3 {[%clk
0:02:58.4]} 17. bxc3 {[%clk 0:02:18.6]} 17... Nxe4 {[%clk 0:02:57.3]} 18. Qd3
{[%clk 0:02:10.8]} 18... Nxg5 {[%clk 0:02:35.2]} 19. Nxg5 {[%clk 0:02:09.6]}
19... e5 {[%clk 0:02:27]} 20. Ne4 {[%clk 0:02:07.5]} 20... f5 {[%clk 0:02:25.8]}
21. Nd2 {[%clk 0:02:05.4]} 21... e4 {[%clk 0:02:23.6]} 22. Qc4 {[%clk
0:01:54.5]} 22... Qf6 {[%clk 0:02:17]} 23. Ra3 {[%clk 0:01:49.1]} 23... Rb2
{[%clk 0:02:08.2]} 24. Nf1 {[%clk 0:01:40.6]} 24... Rc2 {[%clk 0:01:57.7]} 25.
Ne3 {[%clk 0:01:37.9]} 25... Rxc3 {[%clk 0:01:56.4]} 26. Rxc3 {[%clk 0:01:36.2]}
26... Qxc3 {[%clk 0:01:57.3]} 27. Qa6 {[%clk 0:01:36.1]} 27... f4 {[%clk
0:00:49.9]} 28. Ng4 {[%clk 0:01:32.5]} 28... e3 {[%clk 0:00:34.1]} 29. Qxd6
{[%clk 0:01:15.3]} 29... Kh8 {[%clk 0:00:19]} 30. Qe6 {[%clk 0:01:06.4]} 30...
Bd4 {[%clk 0:00:12.6]} 31. d6 {[%clk 0:00:58.8]} 31... exf2+ {[%clk 0:00:12.6]}
32. Nxf2 {[%clk 0:00:48]} 32... Qc2 {[%clk 0:00:13]} 33. Rf1 {[%clk 0:00:45.3]}
33... Qf5 {[%clk 0:00:13.2]} 34. Qe7 {[%clk 0:00:39.1]} 34... Qf6 {[%clk
0:00:12.6]} 35. Qc7 {[%clk 0:00:33.1]} 35... Rd8 {[%clk 0:00:12.5]} 36. Kh1
{[%clk 0:00:28.4]} 36... Qxd6 {[%clk 0:00:12.5]} 37. Qf7 {[%clk 0:00:27]} 37...
Qf6 {[%clk 0:00:12]} 38. Qc4 {[%clk 0:00:26.7]} 38... Bxf2 {[%clk 0:00:11.8]}
39. Rxf2 {[%clk 0:00:26.4]} 39... Rd4 {[%clk 0:00:12.5]} 40. Qxc5 {[%clk
0:00:25.1]} 40... Kg7 {[%clk 0:00:10.6]} 41. Qc7+ {[%clk 0:00:24.8]} 41... Kh6
{[%clk 0:00:10]} 42. Kh2 {[%clk 0:00:23.3]} 42... Re4 {[%clk 0:00:08.7]} 43. Qd6
{[%clk 0:00:22.5]} 43... g5 {[%clk 0:00:06.6]} 44. Qxf6+ {[%clk 0:00:21.6]} 1-0

[Event "Early-Titled-Tuesday-Blitz-January-16-2024"]
[Site "Chess.com"]
[Date "2024.01.16"]
[Round "5"]
[White "Sebastian"]
[Black "FredddieCroderg"]
[Result "1-0"]
[WhiteElo "2944"]
[BlackElo "2346"]
[TimeControl "180+1"]
[EndTime "8:58:38 PST"]
[Termination "Sebastian won by resignation"]

1. e4 {[%clk 0:02:26.1]} 1... c6 {[%clk 0:02:56.8]} 2. d4 {[%clk 0:02:25.6]}
2... d5 {[%clk 0:02:56.6]} 3. e5 {[%clk 0:02:26.3]} 3... Bf5 {[%clk 0:02:55.2]}
4. Nf3 {[%clk 0:02:26.7]} 4... e6 {[%clk 0:02:55.3]} 5. Be2 {[%clk 0:02:27.4]}
5... c5 {[%clk 0:02:55.4]} 6. Be3 {[%clk 0:02:25.3]} 6... Qb6 {[%clk 0:02:55]}
7. Nc3 {[%clk 0:02:21.8]} 7... Nc6 {[%clk 0:02:54.7]} 8. Na4 {[%clk 0:02:21.5]}
8... Qa5+ {[%clk 0:02:52.6]} 9. c3 {[%clk 0:02:21.7]} 9... cxd4 {[%clk
0:02:37.4]} 10. Nxd4 {[%clk 0:02:18.5]} 10... Nxd4 {[%clk 0:02:37.1]} 11. Bxd4
{[%clk 0:02:19.2]} 11... Ne7 {[%clk 0:02:33.6]} 12. Qb3 {[%clk 0:02:08.4]} 12...
Qc7 {[%clk 0:02:29.3]} 13. Nc5 {[%clk 0:02:07.8]} 13... Nc6 {[%clk 0:02:20.8]}
14. Qxb7 {[%clk 0:01:59.7]} 14... Qxb7 {[%clk 0:02:17.2]} 15. Nxb7 {[%clk
0:02:00.6]} 15... Rb8 {[%clk 0:02:16.1]} 16. Bb5 {[%clk 0:01:55.5]} 16... Kd7
{[%clk 0:02:08.7]} 17. Bxc6+ {[%clk 0:01:54.8]} 17... Kxc6 {[%clk 0:02:06.6]}
18. Na5+ {[%clk 0:01:55.7]} 18... Kd7 {[%clk 0:01:58.2]} 19. b4 {[%clk 0:01:49]}
19... Be7 {[%clk 0:01:51.5]} 20. Bxa7 {[%clk 0:01:28.3]} 20... Ra8 {[%clk
0:01:43.4]} 21. Bd4 {[%clk 0:01:25.5]} 21... Bd3 {[%clk 0:01:41.9]} 22. Kd2
{[%clk 0:01:15.3]} 22... Ba6 {[%clk 0:01:40]} 23. a4 {[%clk 0:01:14]} 23... Bg5+
{[%clk 0:01:39.3]} 24. Kc2 {[%clk 0:01:10.2]} 24... Be2 {[%clk 0:01:24.5]} 25.
Rhe1 {[%clk 0:01:02.4]} 25... Bh5 {[%clk 0:01:22.7]} 26. Nb3 {[%clk 0:01:01.6]}
26... Bg6+ {[%clk 0:01:21.5]} 27. Kb2 {[%clk 0:01:01.5]} 27... Rhb8 {[%clk
0:01:18.3]} 28. a5 {[%clk 0:01:01]} 28... Kc6 {[%clk 0:01:11.7]} 29. a6 {[%clk
0:00:43.2]} 29... Bd3 {[%clk 0:01:08.3]} 30. a7 {[%clk 0:00:43.1]} 30... Rb7
{[%clk 0:01:01.9]} 31. Na5+ {[%clk 0:00:41.6]} 31... Kc7 {[%clk 0:01:00.8]} 32.
Nxb7 {[%clk 0:00:41.1]} 32... Kxb7 {[%clk 0:01:01.4]} 33. Ra5 {[%clk 0:00:40.8]}
33... Bc4 {[%clk 0:00:59.1]} 34. Rea1 {[%clk 0:00:39.3]} 34... Bd8 {[%clk
0:00:58.4]} 35. R5a3 {[%clk 0:00:35.9]} 35... Bc7 {[%clk 0:00:58.4]} 36. f4
{[%clk 0:00:35.1]} 36... h6 {[%clk 0:00:57.2]} 37. h4 {[%clk 0:00:34.7]} 37...
h5 {[%clk 0:00:56.3]} 38. g3 {[%clk 0:00:33.5]} 38... g6 {[%clk 0:00:55.3]} 39.
Kc1 {[%clk 0:00:33.7]} 39... Kc6 {[%clk 0:00:53.4]} 40. Kd2 {[%clk 0:00:33.4]}
40... Bb5 {[%clk 0:00:51.2]} 41. Ke3 {[%clk 0:00:33.8]} 41... Bc4 {[%clk
0:00:50.6]} 42. Rg1 {[%clk 0:00:29.3]} 42... Bb6 {[%clk 0:00:36.6]} 43. Bxb6
{[%clk 0:00:28.2]} 43... Kxb6 {[%clk 0:00:36.6]} 44. Kd4 {[%clk 0:00:29.1]}
44... Bb5 {[%clk 0:00:33.3]} 45. g4 {[%clk 0:00:27.9]} 45... hxg4 {[%clk
0:00:32.3]} 46. Rxg4 {[%clk 0:00:28.8]} 46... Be2 {[%clk 0:00:31.6]} 47. Rg2
{[%clk 0:00:28.4]} 47... Bf3 {[%clk 0:00:30.1]} 48. Rg1 {[%clk 0:00:28.3]} 48...
Be2 {[%clk 0:00:28.7]} 49. Ra5 {[%clk 0:00:27.6]} 49... Bf3 {[%clk 0:00:23.8]}
50. Rga1 {[%clk 0:00:26.1]} 50... Be2 {[%clk 0:00:23.1]} 51. Rc5 {[%clk
0:00:25.6]} 51... Bc4 {[%clk 0:00:22]} 52. b5 {[%clk 0:00:24.9]} 52... Bxb5
{[%clk 0:00:19.3]} 53. Rb1 {[%clk 0:00:24.7]} 1-0

[Event "Early-Titled-Tuesday-Blitz-January-16-2024"]
[Site "Chess.com"]
[Date "2024.01.16"]
[Round "5"]
[White "Njal28"]
[Black "DreamsAreFake"]
[Result "1/2-1/2"]
[WhiteElo "3016"]
[BlackElo "2750"]
[TimeControl "180+1"]
[EndTime "8:58:39 PST"]
[Termination "Game drawn by repetition"]

1. d4 {[%clk 0:02:55.5]} 1... Nf6 {[%clk 0:02:58.7]} 2. Bg5 {[%clk 0:02:54]}
2... b6 {[%clk 0:02:52]} 3. Nf3 {[%clk 0:02:50.7]} 3... Bb7 {[%clk 0:02:51.3]}
4. Nbd2 {[%clk 0:02:51.2]} 4... g6 {[%clk 0:02:35.2]} 5. e3 {[%clk 0:02:34.1]}
5... Bg7 {[%clk 0:02:34.6]} 6. Bd3 {[%clk 0:02:33.6]} 6... O-O {[%clk
0:02:34.5]} 7. O-O {[%clk 0:02:33.6]} 7... h6 {[%clk 0:02:30]} 8. Bh4 {[%clk
0:02:32]} 8... d6 {[%clk 0:02:28.3]} 9. Re1 {[%clk 0:02:25.7]} 9... Nbd7 {[%clk
0:02:27.2]} 10. e4 {[%clk 0:02:24.6]} 10... e5 {[%clk 0:02:27]} 11. c3 {[%clk
0:02:25.3]} 11... Qe7 {[%clk 0:02:07.6]} 12. a4 {[%clk 0:02:24.1]} 12... a6
{[%clk 0:01:59.5]} 13. Qc2 {[%clk 0:02:18.9]} 13... Rfe8 {[%clk 0:01:54.4]} 14.
Rad1 {[%clk 0:02:10.5]} 14... Nf8 {[%clk 0:01:48.1]} 15. dxe5 {[%clk 0:02:10.2]}
15... dxe5 {[%clk 0:01:46.9]} 16. Nc4 {[%clk 0:02:07.5]} 16... N8d7 {[%clk
0:01:43.1]} 17. b4 {[%clk 0:02:01.5]} 17... Rad8 {[%clk 0:01:36.3]} 18. Bf1
{[%clk 0:01:47.3]} 18... Qe6 {[%clk 0:01:26.5]} 19. Ncd2 {[%clk 0:01:34.8]}
19... Nf8 {[%clk 0:01:09.3]} 20. Bc4 {[%clk 0:01:30.6]} 20... Qe7 {[%clk
0:01:09.7]} 21. h3 {[%clk 0:01:24.5]} 21... g5 {[%clk 0:01:06.9]} 22. Bg3 {[%clk
0:01:24.2]} 22... Ng6 {[%clk 0:01:07.4]} 23. Qa2 {[%clk 0:01:15.5]} 23... Nh5
{[%clk 0:01:05.7]} 24. Kh2 {[%clk 0:01:10.2]} 24... Nhf4 {[%clk 0:00:55.6]} 25.
Bxf4 {[%clk 0:00:39.9]} 25... exf4 {[%clk 0:00:49.7]} 26. e5 {[%clk 0:00:40.4]}
26... Nxe5 {[%clk 0:00:35.7]} 27. Nxe5 {[%clk 0:00:39.6]} 27... Bxe5 {[%clk
0:00:36.3]} 28. Rxe5 {[%clk 0:00:31.3]} 28... Qxe5 {[%clk 0:00:36.2]} 29. Bxf7+
{[%clk 0:00:32.2]} 29... Kh8 {[%clk 0:00:31.1]} 30. Bxe8 {[%clk 0:00:33.1]}
30... f3+ {[%clk 0:00:26.7]} 31. Kg1 {[%clk 0:00:20.9]} 31... Qe2 {[%clk
0:00:25]} 32. Qf7 {[%clk 0:00:14.5]} 32... Rxe8 {[%clk 0:00:11.7]} 33. Ra1
{[%clk 0:00:11.9]} 33... fxg2 {[%clk 0:00:09.6]} 34. Qf6+ {[%clk 0:00:11]} 34...
Kh7 {[%clk 0:00:09.7]} 35. Qf7+ {[%clk 0:00:11.4]} 35... Kh8 {[%clk 0:00:10.4]}
36. Qf6+ {[%clk 0:00:07.8]} 36... Kh7 {[%clk 0:00:10.6]} 37. Qf7+ {[%clk
0:00:06.5]} 37... Kh8 {[%clk 0:00:10.8]} 1/2-1/2

[Event "Early-Titled-Tuesday-Blitz-January-16-2024"]
[Site "Chess.com"]
[Date "2024.01.16"]
[Round "5"]
[White "GothamChess"]
[Black "Sanan_Sjugirov"]
[Result "0-1"]
[WhiteElo "2714"]
[BlackElo "2962"]
[TimeControl "180+1"]
[EndTime "8:58:39 PST"]
[Termination "Sanan_Sjugirov won on time"]

1. e4 {[%clk 0:03:00.9]} 1... c5 {[%clk 0:02:58]} 2. a3 {[%clk 0:03:00.2]} 2...
g6 {[%clk 0:02:57]} 3. Nc3 {[%clk 0:03:00.3]} 3... Bg7 {[%clk 0:02:56.5]} 4. Bc4
{[%clk 0:03:01]} 4... d6 {[%clk 0:02:53.2]} 5. d3 {[%clk 0:03:01.2]} 5... Nc6
{[%clk 0:02:52.5]} 6. Nge2 {[%clk 0:03:00.5]} 6... Nf6 {[%clk 0:02:51.1]} 7. Bg5
{[%clk 0:02:52.6]} 7... a6 {[%clk 0:02:39.9]} 8. Ba2 {[%clk 0:02:44.7]} 8... b5
{[%clk 0:02:31.2]} 9. O-O {[%clk 0:02:43.8]} 9... O-O {[%clk 0:02:28.9]} 10. Qd2
{[%clk 0:02:42.1]} 10... Bb7 {[%clk 0:02:20]} 11. Bh6 {[%clk 0:02:36.5]} 11...
e6 {[%clk 0:01:55.8]} 12. Bxg7 {[%clk 0:02:28.2]} 12... Kxg7 {[%clk 0:01:56.7]}
13. Qe3 {[%clk 0:02:21.7]} 13... Qb6 {[%clk 0:01:50.8]} 14. b4 {[%clk
0:01:59.5]} 14... Rac8 {[%clk 0:01:43.3]} 15. Rab1 {[%clk 0:01:52.7]} 15... Nd4
{[%clk 0:01:35.1]} 16. Rb2 {[%clk 0:01:40.3]} 16... e5 {[%clk 0:01:08.9]} 17. h3
{[%clk 0:01:28.2]} 17... Rc7 {[%clk 0:00:55.4]} 18. Nd5 {[%clk 0:00:59.6]} 18...
Bxd5 {[%clk 0:00:53.9]} 19. Bxd5 {[%clk 0:01:00.5]} 19... cxb4 {[%clk
0:00:49.7]} 20. axb4 {[%clk 0:00:53.8]} 20... Nxe2+ {[%clk 0:00:49.3]} 21. Qxe2
{[%clk 0:00:53.9]} 21... Qd4 {[%clk 0:00:49.8]} 22. Ra2 {[%clk 0:00:49.6]} 22...
Nxd5 {[%clk 0:00:41.8]} 23. exd5 {[%clk 0:00:50.5]} 23... Rfc8 {[%clk
0:00:35.5]} 24. Rxa6 {[%clk 0:00:39.7]} 24... Rxc2 {[%clk 0:00:35.5]} 25. Qf3
{[%clk 0:00:35.2]} 25... Qxb4 {[%clk 0:00:35.8]} 26. Rfa1 {[%clk 0:00:15.3]}
26... R8c7 {[%clk 0:00:24.5]} 27. Kh2 {[%clk 0:00:12.8]} 27... R2c3 {[%clk
0:00:14.8]} 28. Rc6 {[%clk 0:00:10.9]} 28... R3xc6 {[%clk 0:00:14.2]} 29. dxc6
{[%clk 0:00:11.8]} 29... Qc5 {[%clk 0:00:10.5]} 30. Ra6 {[%clk 0:00:12.3]} 30...
b4 {[%clk 0:00:10.9]} 31. h4 {[%clk 0:00:04.6]} 31... Qb5 {[%clk 0:00:10.8]} 32.
Ra1 {[%clk 0:00:02]} 32... Qxc6 {[%clk 0:00:10.8]} 33. Qg4 {[%clk 0:00:02.1]}
33... Qc3 {[%clk 0:00:08.4]} 34. Ra8 {[%clk 0:00:01.4]} 34... Qxd3 {[%clk
0:00:06.5]} 35. Qg5 {[%clk 0:00:01.5]} 35... Qe4 {[%clk 0:00:03.4]} 36. g3
{[%clk 0:00:01.2]} 36... Qxa8 {[%clk 0:00:02.9]} 0-1

[Event "Early-Titled-Tuesday-Blitz-January-16-2024"]
[Site "Chess.com"]
[Date "2024.01.16"]
[Round "5"]
[White "Arifarsky"]
[Black "Manukyan_Artak"]
[Result "1-0"]
[WhiteElo "2721"]
[BlackElo "2550"]
[TimeControl "180+1"]
[EndTime "8:58:39 PST"]
[Termination "Arifarsky won on time"]

1. e4 {[%clk 0:02:58.1]} 1... c6 {[%clk 0:02:58.3]} 2. d4 {[%clk 0:02:50.7]}
2... d5 {[%clk 0:02:58.7]} 3. Nc3 {[%clk 0:02:48.5]} 3... dxe4 {[%clk
0:02:58.5]} 4. Nxe4 {[%clk 0:02:49.4]} 4... Nf6 {[%clk 0:02:59]} 5. Nxf6+ {[%clk
0:02:42.4]} 5... exf6 {[%clk 0:02:59.9]} 6. Be3 {[%clk 0:02:42.8]} 6... Bd6
{[%clk 0:02:58]} 7. Bd3 {[%clk 0:02:42.8]} 7... O-O {[%clk 0:02:57.5]} 8. Ne2
{[%clk 0:02:43.2]} 8... Qc7 {[%clk 0:02:57]} 9. Ng3 {[%clk 0:02:42.1]} 9... Re8
{[%clk 0:02:52.9]} 10. O-O {[%clk 0:02:42.1]} 10... g6 {[%clk 0:02:38.5]} 11.
Re1 {[%clk 0:02:37]} 11... f5 {[%clk 0:02:29.8]} 12. Bh6 {[%clk 0:02:33.2]}
12... Be6 {[%clk 0:02:24.7]} 13. c4 {[%clk 0:02:28.5]} 13... Nd7 {[%clk
0:02:19.1]} 14. Rc1 {[%clk 0:02:26]} 14... Qd8 {[%clk 0:01:41.6]} 15. d5 {[%clk
0:02:14.8]} 15... cxd5 {[%clk 0:01:37.1]} 16. cxd5 {[%clk 0:02:15.7]} 16... Bxd5
{[%clk 0:01:35.6]} 17. Rxe8+ {[%clk 0:02:16.6]} 17... Qxe8 {[%clk 0:01:35.3]}
18. Bxf5 {[%clk 0:02:17.2]} 18... Bxg3 {[%clk 0:01:22.8]} 19. hxg3 {[%clk
0:02:09.7]} 19... Bc6 {[%clk 0:01:05]} 20. Rxc6 {[%clk 0:01:56.3]} 20... gxf5
{[%clk 0:00:34.7]} 21. Qd2 {[%clk 0:01:30.5]} 21... f6 {[%clk 0:00:30.2]} 22.
Rc7 {[%clk 0:01:17.5]} 22... Rd8 {[%clk 0:00:25.3]} 23. Qd5+ {[%clk 0:01:15.6]}
23... Kh8 {[%clk 0:00:23.7]} 24. Qxf5 {[%clk 0:01:06.6]} 24... Qg6 {[%clk
0:00:19.7]} 25. Qxg6 {[%clk 0:00:55]} 25... hxg6 {[%clk 0:00:20.6]} 26. Rxb7
{[%clk 0:00:54.8]} 26... g5 {[%clk 0:00:19.9]} 27. f4 {[%clk 0:00:50.9]} 27...
gxf4 {[%clk 0:00:17.6]} 28. Bxf4 {[%clk 0:00:50.2]} 28... Nc5 {[%clk 0:00:17.1]}
29. Rxa7 {[%clk 0:00:50.5]} 29... Rd1+ {[%clk 0:00:16.2]} 30. Kf2 {[%clk
0:00:50.7]} 30... Nd3+ {[%clk 0:00:15.8]} 31. Ke2 {[%clk 0:00:51.1]} 31... Nxb2
{[%clk 0:00:15.8]} 32. Rb7 {[%clk 0:00:50.5]} 32... Rg1 {[%clk 0:00:09]} 33. Kf2
{[%clk 0:00:45.3]} 33... Rb1 {[%clk 0:00:08]} 34. Kf3 {[%clk 0:00:41.1]} 34...
Rf1+ {[%clk 0:00:08]} 35. Ke2 {[%clk 0:00:36.5]} 35... Rg1 {[%clk 0:00:08.2]}
36. Kf3 {[%clk 0:00:33.3]} 36... Rf1+ {[%clk 0:00:05.7]} 37. Kg4 {[%clk
0:00:33.8]} 37... Nd3 {[%clk 0:00:05.7]} 38. Kf5 {[%clk 0:00:29.4]} 38... Rf2
{[%clk 0:00:04.8]} 39. Kg6 {[%clk 0:00:28.8]} 39... Nxf4+ {[%clk 0:00:03.1]} 40.
gxf4 {[%clk 0:00:28.6]} 40... Rxg2+ {[%clk 0:00:04]} 41. Kxf6 {[%clk 0:00:27.9]}
41... Rxa2 {[%clk 0:00:04.3]} 42. f5 {[%clk 0:00:25.8]} 42... Ra6+ {[%clk
0:00:03.2]} 43. Kf7 {[%clk 0:00:26.4]} 1-0

[Event "Early-Titled-Tuesday-Blitz-January-16-2024"]
[Site "Chess.com"]
[Date "2024.01.16"]
[Round "5"]
[White "JiaHaoxiang"]
[Black "eCztery"]
[Result "1-0"]
[WhiteElo "2619"]
[BlackElo "2456"]
[TimeControl "180+1"]
[EndTime "8:58:41 PST"]
[Termination "JiaHaoxiang won on time"]

1. d4 {[%clk 0:03:00.9]} 1... Nf6 {[%clk 0:02:58.6]} 2. Nf3 {[%clk 0:03:00.2]}
2... e6 {[%clk 0:02:57.6]} 3. Bf4 {[%clk 0:02:58.8]} 3... d5 {[%clk 0:02:56.3]}
4. e3 {[%clk 0:02:59.2]} 4... c5 {[%clk 0:02:53.8]} 5. c3 {[%clk 0:02:58.8]}
5... Nc6 {[%clk 0:02:54.3]} 6. Bd3 {[%clk 0:02:57.4]} 6... Bd6 {[%clk
0:02:54.9]} 7. Bg3 {[%clk 0:02:57.2]} 7... O-O {[%clk 0:02:55.4]} 8. Nbd2 {[%clk
0:02:57.8]} 8... Qe7 {[%clk 0:02:55.7]} 9. Ne5 {[%clk 0:02:53.5]} 9... Nd7
{[%clk 0:02:55.4]} 10. f4 {[%clk 0:02:15.1]} 10... f6 {[%clk 0:02:51.6]} 11.
Nxc6 {[%clk 0:02:07.4]} 11... bxc6 {[%clk 0:02:51]} 12. O-O {[%clk 0:02:08]}
12... Rb8 {[%clk 0:02:46.4]} 13. Rb1 {[%clk 0:02:06.8]} 13... c4 {[%clk
0:02:43.8]} 14. Bc2 {[%clk 0:02:05.9]} 14... c5 {[%clk 0:02:40.7]} 15. Kh1
{[%clk 0:01:57.3]} 15... f5 {[%clk 0:02:40.7]} 16. Nf3 {[%clk 0:01:54.2]} 16...
Qe8 {[%clk 0:02:34.6]} 17. Bh4 {[%clk 0:01:43.7]} 17... Qh5 {[%clk 0:02:32.1]}
18. Rg1 {[%clk 0:01:44.1]} 18... Kh8 {[%clk 0:02:24.9]} 19. h3 {[%clk
0:01:43.7]} 19... Nf6 {[%clk 0:02:19.7]} 20. Bxf6 {[%clk 0:01:42]} 20... Rxf6
{[%clk 0:02:06.7]} 21. b3 {[%clk 0:01:20.9]} 21... cxb3 {[%clk 0:02:02.4]} 22.
axb3 {[%clk 0:01:20.1]} 22... a6 {[%clk 0:01:31.6]} 23. Bd3 {[%clk 0:01:15.1]}
23... h6 {[%clk 0:01:27.6]} 24. Qe2 {[%clk 0:01:09.8]} 24... g5 {[%clk
0:01:24.1]} 25. fxg5 {[%clk 0:00:55.7]} 25... hxg5 {[%clk 0:01:25]} 26. Ne5
{[%clk 0:00:48.9]} 26... g4 {[%clk 0:01:19]} 27. Bxa6 {[%clk 0:00:38]} 27...
Bxa6 {[%clk 0:01:01.8]} 28. Qxa6 {[%clk 0:00:38.9]} 28... gxh3 {[%clk
0:00:43.7]} 29. g4 {[%clk 0:00:37.7]} 29... fxg4 {[%clk 0:00:34.6]} 30. Qxd6
{[%clk 0:00:37]} 30... Rg8 {[%clk 0:00:31.7]} 31. Nd3 {[%clk 0:00:31.9]} 31...
Qf5 {[%clk 0:00:18.9]} 32. Nf4 {[%clk 0:00:23.4]} 32... Qe4+ {[%clk 0:00:18.1]}
33. Kh2 {[%clk 0:00:23]} 33... Qf3 {[%clk 0:00:16.4]} 34. Qe5 {[%clk 0:00:17.3]}
34... Kg7 {[%clk 0:00:11]} 35. Nh5+ {[%clk 0:00:16.5]} 35... Kh7 {[%clk
0:00:04.6]} 36. Nxf6+ {[%clk 0:00:16.3]} 36... Kg6 {[%clk 0:00:04.5]} 37. Rxg4+
{[%clk 0:00:15.9]} 37... Kf7 {[%clk 0:00:01.5]} 38. Qc7+ {[%clk 0:00:14.9]}
38... Kxf6 {[%clk 0:00:01.6]} 39. Rf4+ {[%clk 0:00:15.1]} 1-0

[Event "Early-Titled-Tuesday-Blitz-January-16-2024"]
[Site "Chess.com"]
[Date "2024.01.16"]
[Round "5"]
[White "AttilaTurzo"]
[Black "KarstenHansch"]
[Result "0-1"]
[WhiteElo "2477"]
[BlackElo "2653"]
[TimeControl "180+1"]
[EndTime "8:58:42 PST"]
[Termination "KarstenHansch won by resignation"]

1. d4 {[%clk 0:03:00.9]} 1... Nf6 {[%clk 0:02:58.9]} 2. Bf4 {[%clk 0:03:00.1]}
2... g6 {[%clk 0:02:59]} 3. e3 {[%clk 0:03:00.3]} 3... Bg7 {[%clk 0:02:59.7]} 4.
c3 {[%clk 0:02:55.9]} 4... b6 {[%clk 0:02:56]} 5. Nd2 {[%clk 0:02:54.8]} 5...
O-O {[%clk 0:02:53.3]} 6. Ngf3 {[%clk 0:02:51.7]} 6... d6 {[%clk 0:02:52.2]} 7.
e4 {[%clk 0:02:48.8]} 7... c5 {[%clk 0:02:50.8]} 8. h3 {[%clk 0:02:40.5]} 8...
Bb7 {[%clk 0:02:05.4]} 9. Bd3 {[%clk 0:02:39.3]} 9... e5 {[%clk 0:01:57.9]} 10.
Bg5 {[%clk 0:02:35.5]} 10... exd4 {[%clk 0:01:51.4]} 11. cxd4 {[%clk 0:02:34.4]}
11... Re8 {[%clk 0:01:51.2]} 12. O-O {[%clk 0:02:33]} 12... h6 {[%clk
0:01:51.1]} 13. Bxf6 {[%clk 0:02:27.9]} 13... Bxf6 {[%clk 0:01:46]} 14. Re1
{[%clk 0:02:24.9]} 14... Nc6 {[%clk 0:01:42.1]} 15. d5 {[%clk 0:02:15.3]} 15...
Nb4 {[%clk 0:01:07.6]} 16. Bb5 {[%clk 0:02:14.7]} 16... Bxb2 {[%clk 0:01:06.9]}
17. Bxe8 {[%clk 0:02:10.1]} 17... Bxa1 {[%clk 0:01:01]} 18. Bb5 {[%clk
0:00:54.2]} 18... Bg7 {[%clk 0:00:55.2]} 19. a3 {[%clk 0:00:54.2]} 19... Na6
{[%clk 0:00:54.4]} 20. Nc4 {[%clk 0:00:47.3]} 20... Nc7 {[%clk 0:00:45.8]} 21.
Bc6 {[%clk 0:00:47.6]} 21... Rb8 {[%clk 0:00:44]} 22. Bxb7 {[%clk 0:00:26.9]}
22... Rxb7 {[%clk 0:00:42.5]} 23. a4 {[%clk 0:00:27.6]} 23... Rb8 {[%clk
0:00:28]} 24. Qd2 {[%clk 0:00:27.8]} 24... Qd7 {[%clk 0:00:18.5]} 25. Qf4 {[%clk
0:00:27.9]} 25... Rd8 {[%clk 0:00:17.9]} 26. Rd1 {[%clk 0:00:28.4]} 26... Ne8
{[%clk 0:00:17.8]} 27. e5 {[%clk 0:00:28.6]} 27... Qxa4 {[%clk 0:00:10.9]} 28.
e6 {[%clk 0:00:20.6]} 28... Qxd1+ {[%clk 0:00:10.5]} 29. Kh2 {[%clk 0:00:20.6]}
29... f5 {[%clk 0:00:10.8]} 30. Qg3 {[%clk 0:00:17.1]} 30... Qxd5 {[%clk
0:00:10]} 31. Qxg6 {[%clk 0:00:16.6]} 31... Qxc4 {[%clk 0:00:08.9]} 32. Qf7+
{[%clk 0:00:15.6]} 32... Kh8 {[%clk 0:00:09.4]} 33. Nh4 {[%clk 0:00:15.7]} 33...
Qxh4 {[%clk 0:00:08.9]} 34. e7 {[%clk 0:00:13.4]} 34... Rb8 {[%clk 0:00:08.5]}
35. g3 {[%clk 0:00:12.1]} 35... Qf6 {[%clk 0:00:09]} 36. Qd5 {[%clk 0:00:11.9]}
36... Qxe7 {[%clk 0:00:09.3]} 37. h4 {[%clk 0:00:12]} 37... Nf6 {[%clk 0:00:10]}
38. Qxf5 {[%clk 0:00:10.9]} 38... Rf8 {[%clk 0:00:09.3]} 39. Qg6 {[%clk
0:00:10.9]} 39... Ne4 {[%clk 0:00:09.8]} 40. f4 {[%clk 0:00:09.7]} 40... Nxg3
{[%clk 0:00:09.4]} 41. Kxg3 {[%clk 0:00:09.1]} 41... Qf6 {[%clk 0:00:10.2]} 42.
Qe4 {[%clk 0:00:08.9]} 42... Qxf4+ {[%clk 0:00:10.8]} 43. Qxf4 {[%clk
0:00:09.2]} 43... Rxf4 {[%clk 0:00:11.7]} 44. Kxf4 {[%clk 0:00:09.8]} 44... a5
{[%clk 0:00:12.6]} 45. Ke3 {[%clk 0:00:09.8]} 45... a4 {[%clk 0:00:13.5]} 46.
Kd3 {[%clk 0:00:10.6]} 46... a3 {[%clk 0:00:14.4]} 47. Kc2 {[%clk 0:00:11.3]}
47... a2 {[%clk 0:00:15.3]} 0-1